bitfinex/quotes_ETHUSD_20241204
["timestamp","ask_amount","ask_price","bid_price","bid_amount"]
[1733278555757,4.24615,3644.4,3642.9,2.74504]
[1733278556292,1.5022,3644.4,3643.1,2.74486]
[1733278556447,1.5022,3644.4,3643.2,2.74482]
[1733278556648,1.5022,3644.4,3643.3,2.74473]
[1733278556881,1.5022,3644.4,3643.4,2.74467]
[1733278557048,1.5022,3644.4,3643.2,1.5453]
[1733278557258,1.5022,3644.4,3642.8,1.5453]
[1733278557495,1.5022,3644.4,3643.1,2.74489]
[1733278557728,1.5022,3644.4,3642.8,1.5453]
[1733278557729,1.5022,3644.4,3643.3,2.74474]
[1733278558022,1.5022,3644.4,3643.4,2.74467]
[1733278558230,1.512,3644.8,3643.4,2.74467]
[1733278558396,1.512,3644.8,3642.8,1.5453]
[1733278558600,2.74372,3644.7,3643.2,2.74481]
[1733278558800,1.512,3644.8,3643.0,2.74499]
[1733278558995,1.512,3644.8,3643.1,2.74491]
[1733278559199,1.512,3644.8,3642.9,0.02744142]
[1733278559494,1.512,3644.8,3643.5,2.74457]
[1733278559808,1.512,3644.8,3643.4,2.74466]
[1733278560214,1.512,3644.8,3643.7,2.74444]
[1733278560416,1.512,3644.8,3644.0,2.74423]
[1733278560590,0.279299,3645.3,3644.0,1.522]
[1733278560937,0.279299,3645.3,3644.4,2.74391]
[1733278561224,1.5163,3645.4,3644.5,2.77128577]
[1733278561538,8.75999009,3645.8,3644.0,1.5494339]
[1733278561834,10.26209009,3644.9,3643.1,1.5287]
[1733278562044,10.31995087,3644.9,3643.1,1.5287]
[1733278562325,4.30353078,3644.9,3643.4,2.74467]
[1733278562522,1.55996078,3644.9,3643.1,1.68157]
[1733278562835,1.55996078,3644.9,3643.1,1.5287]
[1733278563127,2.74385,3644.6,3643.1,4.27359]
[1733278563624,1.55996078,3644.9,3643.1,1.5287]
[1733278563835,8.75999009,3644.8,3641.9,0.02744286]
[1733278564122,1.5021,3644.6,3642.4,2.7454]
[1733278564327,2.74427,3644.0,3641.9,0.17561429]
[1733278564528,2.74427,3644.0,3642.5,2.7453]
[1733278564699,2.74432,3643.9,3642.5,2.7453]
[1733278564924,8.81787447,3644.7,3641.9,0.17561429]
[1733278564925,2.74416,3644.1,3642.4,2.74544]
[1733278565126,1.5395,3644.2,3642.4,2.74544]
[1733278565327,1.5395,3644.2,3642.1,2.74562]
[1733278565529,1.5395,3644.2,3641.9,0.17561429]
[1733278565530,2.74449,3643.7,3642.3,2.74549]
[1733278565726,2.74449,3643.7,3641.9,0.17561429]
[1733278566056,2.74449,3643.7,3642.3,2.7455]
[1733278566242,2.74427,3644.0,3642.5,2.74536]
[1733278566451,10.29949009,3644.2,3642.6,0.02744841]
[1733278566750,10.29949009,3644.2,3643.2,2.74483]
[1733278566915,1.5395,3644.2,3643.3,2.74475]
[1733278567511,1.5395,3644.2,3643.0,2.74493]
[1733278567750,2.74435,3643.9,3642.2,1.6041]
[1733278567954,4.2836,3644.2,3642.8,2.74511]
[1733278568251,4.2836,3644.2,3642.9,2.74502]
[1733278568452,1.6426,3644.1,3642.2,1.6041]
[1733278568658,4.38768,3642.9,3641.7,1.5665]
[1733278568843,1.6426,3642.9,3641.7,1.5665]
[1733278569050,1.6426,3642.9,3641.9,2.7458]
[1733278569417,1.6426,3642.9,3641.7,1.5665]
[1733278569752,1.6451,3641.9,3640.8,1.5989]
[1733278570253,1.6093,3642.4,3640.9,0.02745901]
[1733278570456,1.6093,3642.4,3641.5,2.74611]
[1733278570757,1.6093,3642.4,3640.8,1.5989]
[1733278571059,1.6286,3642.9,3640.9,0.0274563]
[1733278571233,1.6286,3642.9,3641.9,2.74577]
[1733278571434,2.74485,3643.2,3642.0,1.5629]
[1733278571636,1.6286,3643.6,3642.0,1.5629]
[1733278572029,1.6286,3643.6,3642.1,0.02745096]
[1733278572233,1.5309,3644.6,3643.4,2.74466]
[1733278572487,1.5309,3644.6,3642.2,0.18648206]
[1733278572488,1.5309,3644.6,3643.3,1.6074]
[1733278572850,1.5309,3644.6,3643.6,2.7445]
[1733278573259,1.5309,3644.6,3642.4,3.0]
[1733278573467,2.74401,3644.3,3642.1,3.0]
[1733278573773,1.6505,3644.4,3641.0,1.13254103]
[1733278573774,1.6505,3644.0,3642.3,2.74549]
[1733278573950,2.74449,3643.7,3641.9,1.6064]
[1733278574151,2.74449,3643.7,3642.4,2.74541]
[1733278574363,10.41049009,3644.0,3642.0,0.16064]
[1733278574591,2.74484,3643.2,3642.0,0.16064]
[1733278574777,1.6147,3643.0,3641.6,2.746]
[1733278574990,1.6147,3643.0,3641.4,4.32115]
[1733278575303,2.74519,3642.8,3641.4,4.32115]
[1733278575595,1.6147,3643.0,3641.4,1.575]
[1733278575897,8.84584505,3642.9,3640.9,1.6357]
[1733278576067,11.59096505,3642.9,3641.5,2.74609]
[1733278576270,10.37469009,3643.0,3641.5,2.74609]
[1733278576814,10.37469009,3643.0,3641.0,0.19102815]
[1733278576978,2.74507,3642.9,3641.6,2.74603]
[1733278577181,10.37469009,3643.0,3641.6,0.274603]
[1733278577500,2.74537,3642.5,3641.2,2.7463]
[1733278577874,2.74519,3642.8,3641.4,2.74616]
[1733278578197,0.0848,3641.2,3637.7,1.6483]
[1733278578512,2.7478,3639.3,3637.8,0.43973]
[1733278578720,2.74772,3639.4,3637.7,4.39721]
[1733278578867,0.08593908,3639.3,3637.7,1.6483]
[1733278579066,0.08593908,3639.2,3637.7,1.6483]
[1733278579374,2.74774,3639.4,3637.8,0.16483]
[1733278579582,0.08593904,3639.3,3637.8,0.16483]
[1733278579812,8.75999009,3639.6,3637.9,0.02748119]
[1733278579982,8.75999009,3639.6,3638.2,2.74859]
[1733278580305,8.75999009,3639.6,3637.9,0.48644331]
[1733278580306,8.75999009,3639.6,3637.9,3.20779212]
[1733278580599,8.75999009,3639.6,3638.1,2.74864]
[1733278580777,8.75999009,3639.6,3638.2,0.02748037]
[1733278580974,8.75999009,3639.6,3638.3,0.27761204]
[1733278581197,0.0848,3639.8,3638.4,0.02747938]
[1733278581498,1.70182573,3640.4,3638.9,2.74807]
[1733278581698,2.74705,3640.3,3639.0,0.274807]
[1733278581900,2.74705,3640.3,3638.7,2.7482]
[1733278582203,1.6159,3640.4,3638.3,3.0]
[1733278582414,1.6159,3640.4,3638.9,2.74803]
[1733278582610,2.74713,3640.2,3638.7,5.74822]
[1733278582815,2.74745,3639.8,3638.2,2.74858]
[1733278583123,2.74749,3639.7,3638.3,0.428378]
[1733278583265,8.75999009,3640.3,3638.3,0.428378]
[1733278583463,2.74744,3639.8,3638.3,2.74852]
[1733278584573,2.74749,3639.7,3638.3,2.74852]
[1733278584816,2.74749,3639.7,3638.2,3.0]
[1733278585022,2.74744,3639.8,3638.3,0.728385]
[1733278585192,2.74717,3640.1,3638.1,1.5352]
[1733278585399,10.29519009,3640.1,3638.1,1.5352]
[1733278585582,2.74779,3639.3,3638.1,1.5352]
[1733278586114,2.74787,3639.2,3638.1,1.5352]
[1733278586314,10.29519009,3640.1,3638.1,1.980092]
[1733278586517,2.74762,3639.6,3638.1,1.5352]
[1733278586702,10.29519009,3640.1,3638.2,0.0274816]
[1733278586905,2.74725,3640.0,3638.1,4.28385]
[1733278587103,2.74745,3639.8,3638.2,0.428385]
[1733278587469,2.74745,3639.8,3638.1,1.5352]
[1733278587470,2.74727,3640.0,3638.4,2.7484]
[1733278587631,2.74734,3639.9,3638.5,2.74835]
[1733278587916,10.29519009,3640.1,3638.1,1.5352]
[1733278588126,10.29519009,3640.1,3638.2,0.45352]
[1733278588331,1.5352,3640.1,3638.2,6.20208]
[1733278588485,2.74766,3639.5,3638.2,0.45352]
[1733278588681,1.5352,3640.1,3638.2,0.45352]
[1733278588881,2.74764,3639.5,3638.3,0.198872]
[1733278589117,2.74775,3639.4,3638.3,0.198872]
[1733278589694,1.5352,3640.1,3638.3,0.198872]
[1733278589907,2.74765,3639.5,3638.3,0.198872]
[1733278590214,4.26124,3639.0,3637.6,1.5748]
[1733278590417,1.5132,3639.0,3637.6,1.5748]
[1733278590723,2.74725,3640.0,3637.8,1.561]
[1733278590724,1.6558,3640.0,3637.8,1.561]
[1733278590934,1.6558,3640.5,3638.6,2.7483]
[1733278591268,1.100275,3640.8,3639.4,1.561]
[1733278591423,5.0,3642.0,3639.4,1.561]
[1733278591424,4.40644,3641.7,3639.5,0.18357069]
[1733278591628,4.40644,3641.7,3640.3,2.747]
[1733278591827,0.26954892,3641.6,3640.1,2.7471]
[1733278592140,0.26954892,3641.6,3639.9,3.0]
[1733278592341,0.26954892,3641.6,3640.4,2.74694]
[1733278592659,0.26954892,3641.6,3640.3,1.5322]
[1733278592863,3.01559892,3641.6,3640.3,4.27917]
[1733278593161,1.6604,3641.7,3640.3,4.27917]
[1733278593359,1.6604,3641.7,3640.3,1.5322]
[1733278593676,1.6604,3641.7,3640.4,2.74691]
[1733278593965,4.40637,3641.7,3640.4,2.74691]
[1733278594259,1.6604,3641.7,3640.3,4.68542]
[1733278594460,0.26969112,3642.3,3640.3,1.71288345]
[1733278594666,0.26969112,3642.3,3641.6,1.5649]
[1733278594862,1.5708,3642.7,3641.6,1.5649]
[1733278595163,1.5708,3643.2,3641.7,0.02745517]
[1733278595463,1.5708,3643.2,3641.7,2.74597]
[1733278595667,1.5708,3643.2,3642.2,2.74557]
[1733278596272,1.5648,3643.6,3641.9,3.0]
[1733278596559,1.5648,3643.6,3642.7,2.74519]
[1733278596769,1.5648,3643.6,3640.2,1.6059]
[1733278596770,6.6648,3643.3,3640.2,1.6059]
[1733278596924,1.5648,3642.0,3640.9,2.74655]
[1733278597124,1.5648,3642.0,3640.2,1.6059]
[1733278597660,1.5648,3642.0,3640.7,2.74668]
[1733278598065,1.5648,3642.0,3640.5,2.74687]
[1733278598231,1.5648,3642.0,3641.1,2.74639]
[1733278598428,1.5648,3642.0,3640.8,2.74662]
[1733278598622,1.5648,3642.0,3640.7,2.74672]
[1733278598828,1.5648,3642.0,3640.6,3.27743316]
[1733278598829,1.6439,3642.7,3641.6,2.74603]
[1733278599456,1.6439,3642.7,3641.0,2.74644]
[1733278599664,1.6439,3642.7,3641.1,0.438134]
[1733278600264,1.5463,3643.3,3642.0,2.74572]
[1733278600425,1.5463,3643.3,3642.1,2.74565]
[1733278600859,1.5463,3643.3,3642.2,2.74556]
[1733278601066,1.5463,3643.3,3642.0,0.16147]
[1733278601571,1.5463,3643.3,3642.4,2.74542]
[1733278601730,1.5708,3643.8,3642.1,2.74566]
[1733278601931,1.5708,3643.8,3642.5,2.74535]
[1733278602135,1.5708,3643.8,3642.0,0.16147]
[1733278602136,2.74462,3643.5,3642.0,0.16147]
[1733278602353,2.74462,3643.5,3641.3,4.35395]
[1733278602354,1.6142,3642.7,3641.3,4.35395]
[1733278602530,1.6142,3642.7,3641.3,1.6077]
[1733278602729,8.75999009,3643.5,3641.3,1.6077]
[1733278602730,1.6142,3643.2,3642.0,2.74572]
[1733278602926,1.5718,3643.7,3642.1,1.5387]
[1733278603148,4.31628,3643.7,3642.1,1.5387]
[1733278603425,1.5718,3643.7,3642.5,2.74534]
[1733278603630,1.5718,3643.7,3642.6,2.74527]
[1733278604037,1.5718,3643.7,3642.9,2.74505]
[1733278604346,1.5325,3644.1,3643.3,2.74475]
[1733278604557,1.5325,3644.6,3643.6,2.74451]
[1733278605336,1.5325,3644.6,3643.8,2.74431]
[1733278605985,1.647,3645.2,3644.1,2.74409]
[1733278606183,1.647,3645.2,3644.2,2.74406]
[1733278606535,1.647,3645.2,3643.8,0.274431]
[1733278606877,1.647,3645.2,3644.3,2.74399]
[1733278608298,1.647,3645.2,3643.9,1.5257]
[1733278608441,1.647,3645.2,3644.5,2.74384]
[1733278609062,1.647,3645.2,3644.0,0.18275674]
[1733278609449,1.647,3645.2,3644.3,2.74399]
[1733278610090,1.5043,3645.9,3644.1,0.02743563]
[1733278610241,1.5043,3645.9,3644.5,2.74384]
[1733278610242,4.24711,3645.9,3644.5,2.74384]
[1733278610439,2.74304,3645.6,3644.0,0.18275674]
[1733278610661,2.74304,3645.6,3644.3,2.74399]
[1733278610867,4.24716,3645.9,3644.4,2.74391]
[1733278611073,4.24716,3645.9,3645.2,2.74332]
[1733278611074,1.5043,3645.9,3645.2,2.74332]
[1733278611390,1.6014,3646.3,3645.3,0.274332]
[1733278611540,1.6014,3646.3,3645.2,2.74332]
[1733278612251,1.6014,3646.3,3644.6,4.33475]
[1733278612252,1.6014,3646.3,3645.4,2.74316]
[1733278612451,1.6014,3646.3,3645.5,2.74307]
[1733278612657,1.6014,3646.3,3644.6,1.591]
[1733278612970,1.6014,3646.3,3645.3,2.74324]
[1733278613283,1.6014,3646.3,3644.7,0.02742793]
[1733278613284,0.26834946,3647.0,3646.0,1.5652]
[1733278613487,2.74184,3647.2,3645.7,2.74293]
[1733278613646,2.74184,3647.2,3645.5,1.5652]
[1733278613647,4.33561,3647.4,3645.9,2.7428]
[1733278613845,1.5939,3647.4,3645.6,0.15652]
[1733278614178,1.5939,3647.4,3646.2,2.74256]
[1733278614389,1.5939,3647.4,3645.7,2.74295]
[1733278614740,1.5939,3647.4,3646.1,2.74264]
[1733278614947,1.5939,3647.4,3646.2,2.74253]
[1733278615180,1.5939,3647.4,3646.1,0.274264]
[1733278615381,1.5939,3647.4,3645.9,2.74279]
[1733278615589,1.5939,3647.4,3646.4,2.7424]
[1733278615866,1.5939,3647.4,3645.7,0.02741874]
[1733278616066,1.5939,3647.4,3646.6,2.74227]
[1733278616265,1.528,3647.9,3646.5,1.5568]
[1733278616872,3.00610492,3648.2,3646.5,1.5568]
[1733278617184,2.74124,3648.0,3646.5,4.29914]
[1733278617393,4.38735,3648.3,3646.7,2.74218]
[1733278617549,2.74109,3648.2,3646.8,2.74211]
[1733278617749,1.6463,3648.3,3646.5,1.5568]
[1733278617979,1.6463,3648.3,3647.0,2.74196]
[1733278618188,1.6463,3648.3,3646.5,1.5568]
[1733278618388,1.6463,3648.3,3647.2,2.74179]
[1733278618554,1.6463,3648.3,3647.2,3.015969]
[1733278618902,1.6463,3648.3,3647.2,0.274179]
[1733278619066,1.6463,3648.3,3646.5,1.5568]
[1733278619067,1.6463,3648.3,3647.1,2.74188]
[1733278619948,1.6463,3648.3,3646.5,1.5568]
[1733278619949,1.6463,3648.3,3647.2,0.02741205]
[1733278620148,1.6155,3648.7,3647.5,2.74159]
[1733278620391,1.6155,3648.7,3647.1,3.0]
[1733278620558,0.1608406,3649.0,3647.7,1.5098]
[1733278620762,0.1608406,3649.0,3648.0,2.74119]
[1733278620963,0.1608406,3649.0,3647.8,0.02740701]
[1733278621586,0.1608406,3649.0,3648.7,2.74069]
[1733278621795,0.1608406,3649.0,3648.8,0.02740184]
[1733278621946,0.1608406,3649.0,3648.8,2.74057]
[1733278622349,0.1608406,3649.0,3648.9,3.0]
[1733278623350,0.1608406,3649.0,3648.9,4.5864]
[1733278624201,0.1608406,3649.0,3648.9,4.61379668]
[1733278624380,0.1608406,3649.0,3648.9,5.34923335]
[1733278624851,0.1608406,3649.0,3648.9,5.767604]
[1733278625049,0.1608406,3649.0,3648.9,5.34923335]
[1733278625553,0.1608406,3649.0,3648.9,5.767604]
[1733278626074,6e-07,3649.0,3648.9,5.767604]
[1733278626389,6e-07,3649.0,3648.9,5.78093733]
[1733278627770,6e-07,3649.0,3648.9,5.34923335]
[1733278629089,6e-07,3649.0,3648.9,5.78093733]
[1733278629389,6e-07,3649.0,3648.9,6.08093733]
[1733278629593,6e-07,3649.0,3648.9,6.33176326]
[1733278629756,6e-07,3649.0,3648.9,6.05354065]
[1733278629957,1.6575,3651.9,3649.0,1.5834]
[1733278630154,2.73852,3651.6,3650.3,3.0]
[1733278630353,2.73852,3651.6,3650.4,3.0]
[1733278630553,1.6575,3651.9,3650.4,2.7394]
[1733278630773,1.6575,3651.9,3650.1,5.73961]
[1733278630979,1.6575,3651.9,3649.7,1.653]
[1733278630980,1.5942,3651.3,3650.2,0.573961]
[1733278631197,1.5942,3651.3,3649.0,1.03705805]
[1733278631198,2.73898,3651.0,3649.6,2.74002]
[1733278631350,2.73898,3651.0,3649.7,3.0]
[1733278631551,1.5942,3651.3,3649.5,3.0]
[1733278631758,1.5942,3651.3,3649.6,0.02739204]
[1733278631967,2.73883,3651.2,3649.9,3.0]
[1733278632307,1.5942,3651.3,3649.2,1.653]
[1733278632463,1.6262,3651.0,3648.8,2.74062]
[1733278632675,4.3652,3651.0,3649.6,2.73999]
[1733278632915,4.3652,3651.0,3649.6,3.013989]
[1733278633212,1.6262,3651.0,3649.6,0.273999]
[1733278633414,1.6262,3651.0,3649.8,2.73987]
[1733278633577,1.6262,3651.0,3649.9,0.02739023]
[1733278633779,1.6262,3651.0,3650.2,2.73957]
[1733278633979,1.6262,3651.0,3650.3,2.73946]
[1733278634393,1.6262,3651.0,3650.1,2.73964]
[1733278634718,1.6262,3651.0,3650.2,0.273964]
[1733278634889,1.4762,3651.0,3649.7,1.67998972]
[1733278635086,1.4762,3651.0,3650.1,2.73962]
[1733278635313,1.4762,3651.0,3649.8,3.0]
[1733278635519,1.4762,3651.0,3649.7,1.6526]
[1733278635675,2.73908,3650.9,3649.6,5.74001]
[1733278635881,1.4762,3651.0,3649.7,0.574001]
[1733278636215,1.4762,3651.0,3649.8,2.73987]
[1733278636417,1.4762,3651.0,3650.0,2.7397]
[1733278636615,1.4762,3651.0,3649.8,3.0]
[1733278636815,1.4762,3651.0,3649.8,2.73985]
[1733278636977,1.4762,3651.0,3649.9,0.273985]
[1733278637295,1.4762,3651.0,3649.9,3.013765]
[1733278638183,1.4762,3651.0,3650.0,2.7397]
[1733278638380,1.4762,3651.0,3649.9,0.273985]
[1733278638777,1.4762,3651.0,3649.4,3.0]
[1733278638983,1.603,3650.8,3648.1,4.28398]
[1733278639183,2.73981,3649.9,3648.5,2.74082]
[1733278639384,8.91999009,3650.5,3648.2,0.428398]
[1733278639693,1.6003,3649.5,3648.2,2.74104]
[1733278639911,1.6003,3649.5,3648.3,2.741]
[1733278640217,1.6003,3649.5,3647.6,1.6272]
[1733278640218,1.6003,3649.5,3648.4,2.74085]
[1733278640416,1.6003,3649.5,3648.4,3.014935]
[1733278640591,1.6003,3649.5,3648.2,3.0]
[1733278640798,2.74022,3649.4,3648.1,2.74112]
[1733278641108,1.6003,3649.5,3648.4,2.74088]
[1733278641424,1.6003,3649.5,3648.1,2.74114]
[1733278641635,1.6003,3649.5,3649.2,2.74032]
[1733278641781,1.6003,3649.5,3648.8,2.74055]
[1733278641982,1.6003,3649.5,3649.0,2.74044]
[1733278642294,1.6003,3649.5,3648.4,3.0]
[1733278642491,1.6003,3649.5,3648.5,0.3]
[1733278642817,1.6003,3649.5,3649.1,3.0]
[1733278642989,1.6003,3649.5,3649.1,2.74038]
[1733278643195,1.5424,3650.5,3648.8,3.0]
[1733278643417,1.5424,3650.5,3649.5,2.74009]
[1733278643621,1.5424,3650.5,3649.7,2.73995]
[1733278643835,1.5424,3650.5,3649.5,2.74003]
[1733278644021,1.5424,3650.5,3649.6,5.74]
[1733278644330,1.5424,3650.5,3649.9,2.73977]
[1733278644816,0.08566115,3651.0,3649.5,3.0]
[1733278645018,10.53529009,3651.2,3649.2,2.74026]
[1733278645220,1.83801915,3651.1,3649.3,3.0]
[1733278645407,1.6153,3650.9,3649.3,3.0]
[1733278645613,1.6153,3650.9,3648.8,2.74058]
[1733278645614,1.6153,3650.3,3648.7,0.304075]
[1733278645787,1.6153,3650.3,3648.8,0.4881825]
[1733278645982,4.35481,3650.3,3649.0,2.74046]
[1733278646183,0.26747489,3650.2,3649.1,2.74038]
[1733278646685,0.26747489,3650.2,3648.9,3.0]
[1733278646686,1.5225,3649.9,3648.9,3.0]
[1733278646892,1.5287,3649.8,3648.3,2.74098]
[1733278647202,1.79617489,3650.2,3648.8,1.5849]
[1733278647383,1.79617489,3650.2,3650.0,2.73965]
[1733278647629,0.26747489,3650.2,3650.0,2.73965]
[1733278648147,0.26747489,3650.2,3649.7,2.73993]
[1733278648148,0.26747489,3650.2,3649.5,3.0]
[1733278648469,0.26747489,3650.2,3649.6,0.574016]
[1733278648762,0.26747489,3650.2,3649.2,3.0]
[1733278648949,0.26747489,3650.2,3649.6,3.0]
[1733278649283,0.26747489,3650.2,3649.8,2.73985]
[1733278649735,0.08565588,3650.5,3649.8,2.73985]
[1733278649941,1.5287,3650.6,3649.3,0.30179346]
[1733278650241,1.5287,3650.6,3649.8,2.73982]
[1733278651141,0.08565678,3650.5,3650.0,2.7397]
[1733278651354,0.13705972,3650.9,3650.1,0.27397]
[1733278651554,1.6494,3651.1,3650.4,2.73939]
[1733278652468,1.6494,3651.1,3650.4,2.73937]
[1733278652674,1.6494,3651.1,3650.5,0.273937]
[1733278652875,1.6494,3651.1,3650.3,2.73948]
[1733278653085,1.6494,3651.1,3648.9,0.432549]
[1733278653279,1.5143,3650.7,3648.9,2.048949]
[1733278653448,1.5143,3650.7,3649.5,2.74007]
[1733278654081,1.5143,3650.7,3648.9,1.6164]
[1733278654390,1.5143,3650.7,3648.9,4.35688]
[1733278654559,1.6332,3650.5,3649.3,2.74022]
[1733278654954,4.37261,3650.5,3648.5,1.6346]
[1733278655279,1.6332,3650.5,3649.4,2.74012]
[1733278655443,1.6332,3650.5,3648.7,2.7407]
[1733278655643,1.6332,3650.5,3649.4,2.74014]
[1733278655876,1.6332,3650.5,3649.5,2.74009]
[1733278656081,1.6332,3650.5,3648.9,0.02739634]
[1733278656240,1.6332,3650.5,3649.6,2.73998]
[1733278656674,1.6332,3650.5,3649.5,2.74004]
[1733278656874,1.6278065,3650.5,3649.0,0.02739536]
[1733278657191,1.6278065,3650.5,3649.1,0.3631521]
[1733278657346,1.6278065,3650.5,3649.1,3.3631521]
[1733278657541,1.6278065,3650.5,3650.3,2.73947]
[1733278657978,1.6278065,3650.5,3649.5,1.5585]
[1733278657979,1.6278065,3650.5,3650.4,2.73942]
[1733278658249,1.6278065,3650.5,3650.2,2.73956]
[1733278658686,1.6278065,3650.5,3650.2,3.013516]
[1733278658981,1.6278065,3650.5,3649.4,3.0]
[1733278659189,1.6278065,3650.5,3649.8,2.73986]
[1733278659374,1.6278065,3650.5,3649.1,1.9216521]
[1733278659686,1.6278065,3650.5,3650.0,2.7397]
[1733278659981,1.6278065,3650.5,3649.9,2.73976]
[1733278660184,1.6278065,3650.5,3650.2,2.73953]
[1733278660758,1.6278065,3650.5,3649.9,2.73973]
[1733278660945,1.6278065,3650.5,3649.5,3.0]
[1733278661389,1.6278065,3650.5,3649.2,3.02739432]
[1733278661573,1.6278065,3650.5,3647.2,2.74177]
[1733278661574,2.73945,3650.4,3648.6,2.74077]
[1733278661775,2.73945,3650.4,3648.7,2.7407]
[1733278661949,1.6278065,3650.5,3648.8,0.43601]
[1733278662150,1.6278065,3650.5,3648.9,0.02739753]
[1733278662459,1.6278065,3650.5,3649.8,2.73984]
[1733278662963,1.6278065,3650.5,3649.7,2.73993]
[1733278664993,1.6551,3650.8,3649.7,3.0]
[1733278665160,1.6551,3650.9,3649.4,0.274018]
[1733278665363,1.6551,3650.3,3648.9,2.7405]
[1733278665699,4.26617,3649.9,3648.6,2.74074]
[1733278665854,4.26617,3649.9,3648.7,0.274074]
[1733278666196,1.5263,3649.7,3648.7,0.274074]
[1733278666973,1.5263,3649.7,3648.4,1.5597]
[1733278667175,1.5263,3649.7,3648.8,0.0274025]
[1733278667488,1.5263,3649.7,3649.1,2.74032]
[1733278667669,1.5263,3649.7,3649.6,2.74002]
[1733278667869,1.5423,3650.7,3649.0,3.0]
[1733278668130,1.5423,3650.7,3650.2,2.73955]
[1733278668427,4.0,3650.3,3649.6,2.74002]
[1733278668572,1.5423,3650.7,3649.0,3.0]
[1733278668772,1.5423,3650.7,3649.1,0.73197261]
[1733278669003,1.5423,3650.7,3649.7,2.73993]
[1733278669171,1.5423,3650.7,3649.1,0.73197261]
[1733278669374,1.5423,3650.7,3650.1,2.73964]
[1733278669990,1.5423,3650.7,3649.8,2.7398]
[1733278670193,1.5423,3650.7,3649.8,0.847975]
[1733278671076,1.5423,3650.7,3649.5,2.7401]
[1733278671271,1.5423,3650.7,3649.4,0.02739033]
[1733278671272,1.5423,3650.7,3650.1,2.73963]
[1733278671508,1.5423,3650.7,3650.2,2.73953]
[1733278671673,1.5423,3650.7,3649.8,5.73981]
[1733278671873,1.5423,3650.7,3650.0,2.73972]
[1733278672318,1.5423,3650.7,3650.2,3.0]
[1733278673929,1.5423,3650.7,3650.2,0.02739192]
[1733278674093,1.5423,3650.7,3649.6,3.574006]
[1733278674094,1.5423,3650.7,3650.4,3.0]
[1733278674295,1.5423,3650.7,3650.2,3.0]
[1733278675025,8.91999009,3651.5,3648.6,2.74077]
[1733278675026,1.5412,3650.4,3648.6,2.74077]
[1733278675333,1.5412,3650.4,3648.5,1.66589941]
[1733278675508,1.5412,3650.4,3649.3,2.74022]
[1733278675881,1.5412,3650.4,3649.4,2.74016]
[1733278676082,1.5412,3650.4,3649.6,3.0]
[1733278677099,1.5412,3650.4,3648.7,0.437927]
[1733278677296,4.0,3650.3,3649.2,2.74025]
[1733278677532,1.5412,3650.4,3649.2,2.74025]
[1733278677884,1.5412,3650.4,3649.3,2.74024]
[1733278678098,1.51393706,3650.4,3649.4,3.0]
[1733278678400,1.51393706,3650.4,3649.6,3.0]
[1733278678800,1.51393706,3650.4,3649.6,5.73995]
[1733278679943,1.51393706,3650.4,3649.4,2.74017]
[1733278680096,1.51393706,3650.4,3649.5,3.0]
[1733278680294,1.51393706,3650.4,3649.6,3.0]
[1733278680639,1.51393706,3650.4,3649.6,0.30273973]
[1733278680790,1.51393706,3650.4,3649.9,3.0]
[1733278680989,1.51393706,3650.4,3650.2,2.73953]
[1733278681192,1.5798,3650.8,3650.5,2.73933]
[1733278681943,1.5798,3650.8,3649.6,0.30273973]
[1733278682221,1.5798,3650.8,3650.3,3.0]
[1733278682426,1.5798,3650.8,3649.7,0.75866897]
[1733278682623,1.5798,3650.8,3649.5,2.74003]
[1733278682824,1.547,3650.3,3649.3,3.0]
[1733278683051,11.65947009,3650.4,3648.7,2.74069]
[1733278683344,1.547,3649.9,3648.8,2.74057]
[1733278683490,1.547,3649.9,3648.9,2.74052]
[1733278683686,8.91999009,3650.0,3648.7,0.3178636]
[1733278683888,1.5802,3649.5,3648.3,2.74094]
[1733278684187,1.5802,3649.5,3648.7,2.74069]
[1733278684624,1.5802,3649.5,3647.7,1.6482]
[1733278684832,1.5802,3649.5,3648.2,0.02740249]
[1733278685192,1.5802,3649.5,3648.7,3.0]
[1733278685346,1.5802,3649.5,3649.3,2.74021]
[1733278685548,1.6487,3649.9,3649.6,2.74002]
[1733278685698,1.6487,3649.9,3649.7,2.73989]
[1733278685897,1.6487,3650.5,3650.0,2.73972]
[1733278686833,1.6487,3650.5,3649.7,2.73992]
[1733278687029,1.6487,3650.5,3649.7,0.273992]
[1733278687232,1.6487,3650.5,3649.9,3.0]
[1733278687446,10.56869009,3650.5,3648.3,1.5519]
[1733278687608,10.56869009,3650.5,3648.6,2.74077]
[1733278687809,10.56869009,3650.5,3648.7,3.574077]
[1733278688038,10.56869009,3650.5,3649.2,2.74026]
[1733278688344,10.56869009,3650.5,3649.5,3.0]
[1733278688518,10.56869009,3650.5,3648.9,0.02739725]
[1733278688717,10.56869009,3650.5,3649.5,3.0]
[1733278689252,1.5797,3650.0,3648.6,2.74074]
[1733278689457,1.5797,3650.0,3648.6,3.170004]
[1733278689458,2.73981,3649.9,3648.6,3.170004]
[1733278689655,10.49969009,3649.5,3648.6,0.429264]
[1733278689829,1.5797,3649.3,3648.1,2.74114]
[1733278690033,1.5797,3649.3,3647.8,1.71672]
[1733278690360,10.49969009,3649.3,3648.2,2.74102]
[1733278690542,10.49969009,3649.3,3647.9,0.02740478]
[1733278690543,10.49969009,3649.3,3648.3,3.015092]
[1733278690745,10.49969009,3649.3,3648.3,0.274102]
[1733278690940,10.49969009,3649.3,3648.2,3.0]
[1733278691253,10.49969009,3649.3,3648.4,3.0]